[Event "Kupreichik Memorial Rapid 2019"]
[Site "Minsk"]
[Date "2019.08.17"]
[Round "9.13"]
[White "Khrapko, Marharyta"]
[Black "Kochetkov, Vitali"]
[Result "1-0"]
[ECO "C11"]
[WhiteElo "2073"]
[BlackElo "2266"]
[Annotator "NA"]
[PlyCount "81"]
[EventDate "2019.08.15"]
[EventType "swiss"]
[EventCountry "BLR"]
[SourceTitle "playchess.com"]
[Source "ChessBase"]
[SourceQuality "1"]
[TimeControl "900+10"]

1. e4 {[%emt 0:00:00]} e6 {[%emt 0:00:16]} 2. d4 {[%emt 0:00:00]} d5 {[%emt 0:00:01]} 3. Nc3 {[%emt 0:00:00]} Nf6 {[%emt 0:00:18]} 4. Bg5 {[%emt 0:00:05]} dxe4 {[%emt 0:01:04]} 5. Bxf6 {[%emt 0:00:48]} gxf6 {[%emt 0:00:35]} 6. Nxe4 {[%emt 0:00:02]} f5 {[%emt 0:00:47]} 7. Ng3 {[%emt 0:00:15]} c5 {[%emt 0:00:19]} 8. dxc5 {[%emt 0:01:10]} Qxd1+ {[%emt 0:00:09]} 9. Rxd1 {[%emt 0:00:01]} Bxc5 {[%emt 0:00:03]} 10. Nf3 {[%emt 0:00:21]} Nd7 {[%emt 0:00:35]} 11. Bb5 {[%emt 0:00:29]} Ke7 {[%emt 0:00:01]} 12. O-O {[%emt 0:01:07]} Bd6 {[%emt 0:02:12]} 13. Nxf5+ {[%emt 0:01:01]} exf5 {[%emt 0:00:11]} 14. Rfe1+ {[%emt 0:00:01]} Ne5 {[%emt 0:00:37]} 15. Nxe5 {[%emt 0:00:12]} Bxe5 {[%emt 0:00:07]} 16. Rxe5+ {[%emt 0:00:03]} Kf6 {[%emt 0:00:12]} 17. f4 {[%emt 0:02:36]} Be6 {[%emt 0:00:04]} 18. a4 {[%emt 0:00:35]} Rac8 {[%emt 0:00:38]} 19. c3 {[%emt 0:00:03]} Rhd8 {[%emt 0:00:12]} 20. Rxd8 {[%emt 0:00:24]} Rxd8 {[%emt 0:00:01]} 21. Kf2 {[%emt 0:00:20]} a6 {[%emt 0:01:08]} 22. Bf1 {[%emt 0:00:24]} Rd2+ {[%emt 0:00:34]} 23. Re2 {[%emt 0:00:02]} Rd1 {[%emt 0:00:04]} 24. b4 {[%emt 0:03:01]} Rc1 {[%emt 0:00:54]} 25. Re3 {[%emt 0:00:40]} Rc2+ {[%emt 0:00:30]} 26. Kg3 {[%emt 0:00:11]} Bd5 {[%emt 0:02:31]} 27. a5 {[%emt 0:00:02]} Be4 {[%emt 0:00:14]} 28. Be2 {[%emt 0:00:06]} Rc1 {[%emt 0:00:45]} 29. Bf3 {[%emt 0:00:19]} Bxf3 {[%emt 0:00:12]} 30. Kxf3 {[%emt 0:00:08]} Rc2 {[%emt 0:00:05]} 31. h3 {[%emt 0:00:31]} h5 {[%emt 0:00:17]} 32. g3 {[%emt 0:00:04]} Rd2 33. g4 {[%emt 0:01:09]} fxg4+ {[%emt 0:00:06]} 34. hxg4 {[%emt 0:00:01]} hxg4+ {[%emt 0:00:09]} 35. Kxg4 {[%emt 0:00:02]} Rg2+ {[%emt 0:00:14]} 36. Kf3 {[%emt 0:00:04]} Rd2 {[%emt 0:00:37]} 37. Ke4 {[%emt 0:00:23]} Ke6 {[%emt 0:00:55]} 38. Rd3 {[%emt 0:00:59]} f5+ {[%emt 0:00:28]} 39. Kd4 {[%emt 0:01:44]} Rf2 {[%emt 0:00:35]} 40. Kc5 {[%emt 0:00:08]} Rxf4 {[%emt 0:00:46]} 41. Kb6 {[%emt 0:00:01] Kd5} 1-0

[Event "Kupreichik Memorial Rapid 2019"]
[Site "Minsk"]
[Date "2019.08.17"]
[Round "9.14"]
[White "Barskij, Vladimir"]
[Black "Zverev, Lev"]
[Result "1-0"]
[ECO "C29"]
[WhiteElo "2389"]
[BlackElo "1881"]
[Annotator "NA"]
[PlyCount "69"]
[EventDate "2019.08.15"]
[EventType "swiss"]
[EventCountry "BLR"]
[SourceTitle "playchess.com"]
[Source "ChessBase"]
[SourceQuality "1"]
[TimeControl "900+10"]

1. e4 {[%emt 0:00:00]} e5 {[%emt 0:00:00]} 2. Nc3 {[%emt 0:00:08]} Nf6 {[%emt 0:00:00]} 3. f4 {[%emt 0:00:03]} d5 {[%emt 0:00:02]} 4. fxe5 {[%emt 0:00:03]} Nxe4 {[%emt 0:00:02]} 5. Qf3 {[%emt 0:00:03]} Nxc3 {[%emt 0:00:41]} 6. bxc3 {[%emt 0:00:15]} Be6 {[%emt 0:00:05]} 7. Qg3 {[%emt 0:00:52]} Nd7 {[%emt 0:00:10]} 8. Nf3 {[%emt 0:00:10]} Bf5 {[%emt 0:01:04]} 9. d3 {[%emt 0:02:05]} Bg6 {[%emt 0:00:22]} 10. h4 {[%emt 0:00:30]} Qe7 {[%emt 0:00:15]} 11. h5 {[%emt 0:00:49]} Bf5 {[%emt 0:00:02]} 12. Be2 {[%emt 0:00:30]} h6 {[%emt 0:00:09]} 13. O-O {[%emt 0:00:20]} O-O-O {[%emt 0:00:03]} 14. Be3 {[%emt 0:00:26]} a6 {[%emt 0:00:20]} 15. Rab1 {[%emt 0:00:49]} Be6 {[%emt 0:00:18]} 16. Nd4 {[%emt 0:01:25]} c5 {[%emt 0:00:23]} 17. Nxe6 {[%emt 0:00:19]} Qxe6 {[%emt 0:02:02]} 18. Bg4 {[%emt 0:00:07]} Qe8 {[%emt 0:00:06]} 19. Qf4 {[%emt 0:02:36]} Be7 {[%emt 0:03:09]} 20. Qxf7 {[%emt 0:00:38]} Qxf7 {[%emt 0:01:36]} 21. Rxf7 {[%emt 0:00:02]} Rhe8 {[%emt 0:00:27]} 22. Rxg7 {[%emt 0:01:07]} Bf8 {[%emt 0:00:02]} 23. Rg6 {[%emt 0:00:46]} Kb8 {[%emt 0:00:25]} 24. d4 {[%emt 0:00:36]} cxd4 {[%emt 0:00:09]} 25. cxd4 {[%emt 0:00:02]} Ka7 {[%emt 0:00:45]} 26. Bxh6 {[%emt 0:00:42]} Be7 {[%emt 0:00:08]} 27. Bd2 {[%emt 0:01:09]} Nf8 {[%emt 0:00:35]} 28. Rgb6 {[%emt 0:00:04]} Rb8 {[%emt 0:00:04]} 29. Bf5 {[%emt 0:00:07]} Bd8 {[%emt 0:00:04]} 30. R6b3 {[%emt 0:00:17]} b5 {[%emt 0:00:13]} 31. h6 {[%emt 0:00:10]} Bb6 {[%emt 0:00:01]} 32. h7 {[%emt 0:00:21]} Bxd4+ {[%emt 0:01:02]} 33. Be3 {[%emt 0:00:03]} Bxe3+ {[%emt 0:00:12]} 34. Rxe3 {[%emt 0:00:01]} Ne6 {[%emt 0:00:02]} 35. h8=Q {[%emt 0:00:06]} 1-0

[Event "Kupreichik Memorial Rapid 2019"]
[Site "Minsk"]
[Date "2019.08.17"]
[Round "9.15"]
[White "Kharin, Mikhail"]
[Black "Agapov, Sergey"]
[Result "0-1"]
[ECO "A45"]
[WhiteElo "2156"]
[BlackElo "2265"]
[Annotator "NA"]
[PlyCount "76"]
[EventDate "2019.08.15"]
[EventType "swiss"]
[EventCountry "BLR"]
[SourceTitle "playchess.com"]
[Source "ChessBase"]
[SourceQuality "1"]
[TimeControl "900+10"]

1. d4 {[%emt 0:00:00]} Nf6 {[%emt 0:00:00]} 2. Nc3 {[%emt 0:00:00]} d5 {[%emt 0:00:27]} 3. Bf4 {[%emt 0:00:00]} c6 {[%emt 0:00:05]} 4. e3 {[%emt 0:00:00]} Bf5 {[%emt 0:00:07]} 5. f3 {[%emt 0:00:00]} e6 {[%emt 0:00:14]} 6. g4 {[%emt 0:00:06]} Bg6 {[%emt 0:00:02]} 7. h4 {[%emt 0:00:07]} h5 {[%emt 0:00:02]} 8. g5 {[%emt 0:00:03]} Nfd7 {[%emt 0:00:01]} 9. Bd3 {[%emt 0:00:02]} Bxd3 {[%emt 0:00:16]} 10. Qxd3 {[%emt 0:00:02]} c5 {[%emt 0:01:34]} 11. Nge2 {[%emt 0:00:38]} Nc6 {[%emt 0:00:36]} 12. e4 {[%emt 0:00:24]} e5 {[%emt 0:01:31]} 13. Bxe5 {[%emt 0:01:45]} Ndxe5 {[%emt 0:00:03]} 14. dxe5 {[%emt 0:00:09]} d4 {[%emt 0:00:02]} 15. Nd5 {[%emt 0:00:25]} Qd7 {[%emt 0:01:47]} 16. f4 O-O-O {[%emt 0:00:03]} 17. Qh3 {[%emt 0:00:46]} Qe6 {[%emt 0:00:02]} 18. O-O-O {[%emt 0:00:39]} Kb8 {[%emt 0:00:01]} 19. c3 {[%emt 0:00:35]} f5 20. c4 {[%emt 0:03:35]} g6 {[%emt 0:03:02]} 21. Ng3 {[%emt 0:00:25]} Na5 {[%emt 0:00:25]} 22. b3 {[%emt 0:00:13]} Qa6 {[%emt 0:00:03]} 23. Kb1 {[%emt 0:03:53]} Nxc4 {[%emt 0:00:06]} 24. bxc4 {[%emt 0:01:02]} Qxc4 {[%emt 0:00:01]} 25. Qf1 {[%emt 0:00:10]} Qa4 {[%emt 0:00:26]} 26. Qd3 {[%emt 0:01:26]} Qc6 {[%emt 0:00:18]} 27. Ne3 {[%emt 0:00:42]} fxe4 {[%emt 0:00:39]} 28. Nxe4 {[%emt 0:00:40]} b5 {[%emt 0:00:01]} 29. Nc2 {[%emt 0:01:10]} Qb7 {[%emt 0:00:02]} 30. Qe2 {[%emt 0:00:22]} Be7 {[%emt 0:00:18]} 31. Nf6 {[%emt 0:00:15]} d3 {[%emt 0:00:02]} 32. Qd2 {[%emt 0:00:24]} dxc2+ {[%emt 0:00:05]} 33. Qxc2 {[%emt 0:00:01]} c4 {[%emt 0:00:42]} 34. Qxg6 {[%emt 0:00:17]} Qf3 {[%emt 0:00:15]} 35. Rxd8+ {[%emt 0:00:14]} Rxd8 {[%emt 0:00:01]} 36. Rc1 {[%emt 0:00:02]} Ba3 {[%emt 0:00:13]} 37. Qe4 {[%emt 0:00:14]} Rd1 {[%emt 0:00:27]} 38. Nd7+ {[%emt 0:00:15]} Kc7 {[%emt 0:00:01]} 0-1

[Event "Kupreichik Memorial Rapid 2019"]
[Site "Minsk"]
[Date "2019.08.17"]
[Round "9.16"]
[White "Naumovich, Yaroslav"]
[Black "Kochetkov, German"]
[Result "0-1"]
[ECO "A04"]
[WhiteElo "1868"]
[BlackElo "2277"]
[Annotator "NA"]
[PlyCount "94"]
[EventDate "2019.08.15"]
[EventType "swiss"]
[EventCountry "BLR"]
[SourceTitle "playchess.com"]
[Source "ChessBase"]
[SourceQuality "1"]
[TimeControl "900+10"]

1. Nf3 {[%emt 0:00:00]} f5 {[%emt 0:00:00]} 2. d3 {[%emt 0:00:00]} Nf6 {[%emt 0:00:00]} 3. e4 {[%emt 0:00:00]} d6 {[%emt 0:00:04]} 4. exf5 {[%emt 0:00:00]} Bxf5 {[%emt 0:00:02]} 5. d4 {[%emt 0:00:00]} Nc6 {[%emt 0:00:40]} 6. Bd3 {[%emt 0:00:03]} Qd7 {[%emt 0:00:05]} 7. Nc3 {[%emt 0:00:05]} Nb4 {[%emt 0:00:31]} 8. O-O {[%emt 0:01:12]} Nxd3 {[%emt 0:04:16]} 9. cxd3 {[%emt 0:00:01]} O-O-O {[%emt 0:00:29]} 10. Bf4 {[%emt 0:03:50]} h6 {[%emt 0:00:08]} 11. Rc1 {[%emt 0:00:32]} g5 {[%emt 0:00:11]} 12. Bg3 {[%emt 0:00:01]} Bg4 {[%emt 0:01:23]} 13. Qa4 {[%emt 0:01:48]} Qxa4 {[%emt 0:00:21]} 14. Nxa4 {[%emt 0:00:01]} Bxf3 15. gxf3 {[%emt 0:00:01]} h5 {[%emt 0:01:59]} 16. h3 {[%emt 0:01:20]} Bh6 {[%emt 0:00:48]} 17. Rce1 {[%emt 0:00:47]} Kd7 {[%emt 0:00:02]} 18. Nc3 {[%emt 0:00:04]} c6 {[%emt 0:00:09]} 19. Re2 {[%emt 0:00:29]} Rdf8 {[%emt 0:00:04]} 20. Rfe1 {[%emt 0:00:05]} Rh7 {[%emt 0:00:13]} 21. Kg2 {[%emt 0:00:03]} Rg7 {[%emt 0:00:21]} 22. Re6 {[%emt 0:02:38]} Rff7 {[%emt 0:00:09]} 23. R1e2 {[%emt 0:00:55]} Rh7 {[%emt 0:00:16]} 24. a4 {[%emt 0:00:43]} h4 {[%emt 0:00:34]} 25. Bh2 {[%emt 0:00:00]} Bg7 {[%emt 0:01:10]} 26. R6e3 {[%emt 0:01:29]} Nd5 {[%emt 0:01:42]} 27. Re4 {[%emt 0:00:01]} Nb4 {[%emt 0:00:38]} 28. Rd2 {[%emt 0:00:02]} Bh6 {[%emt 0:00:26]} 29. Rd1 {[%emt 0:00:02]} Rf5 {[%emt 0:00:08]} 30. f4 {[%emt 0:01:24]} Rhf7 {[%emt 0:00:50]} 31. Kf3 {[%emt 0:00:17]} Bg7 {[%emt 0:00:25]} 32. Kg4 {[%emt 0:02:01]} d5 {[%emt 0:00:40]} 33. Re2 {[%emt 0:00:08]} gxf4 {[%emt 0:00:08]} 34. Kxh4 {[%emt 0:00:20]} Bxd4 {[%emt 0:00:10]} 35. Kg4 {[%emt 0:00:13]} f3 {[%emt 0:00:20]} 36. Red2 {[%emt 0:00:01]} e6 {[%emt 0:00:07]} 37. h4 {[%emt 0:00:00]} Rg7+ {[%emt 0:00:54]} 38. Kh3 Bf6 {[%emt 0:00:09]} 39. Bg3 {[%emt 0:00:15]} e5 {[%emt 0:00:06]} 40. Re1 {[%emt 0:00:16]} a5 {[%emt 0:00:08]} 41. Rh1 {[%emt 0:00:08]} Rh5 {[%emt 0:00:10]} 42. Re1 {[%emt 0:00:24]} Ke6 {[%emt 0:00:35]} 43. Rh1 {[%emt 0:00:13]} Bg5 {[%emt 0:00:21]} 44. Rdd1 {[%emt 0:00:16]} Kf5 {[%emt 0:00:03]} 45. Rde1 {[%emt 0:00:01]} Bf4 {[%emt 0:00:01]} 46. Bxf4 Kxf4 {[%emt 0:00:16]} 47. Rhg1 {[%emt 0:00:18]} Rxh4+ {[%emt 0:00:03]} 0-1

[Event "Kupreichik Memorial Rapid 2019"]
[Site "Minsk"]
[Date "2019.08.17"]
[Round "9.17"]
[White "Spizharny, Mikhail"]
[Black "Smirnov, Valerij"]
[Result "0-1"]
[ECO "B28"]
[WhiteElo "2079"]
[BlackElo "2261"]
[Annotator "NA"]
[PlyCount "112"]
[EventDate "2019.08.15"]
[EventType "swiss"]
[EventCountry "BLR"]
[SourceTitle "playchess.com"]
[Source "ChessBase"]
[SourceQuality "1"]
[TimeControl "900+10"]

1. e4 {[%emt 0:00:00]} c5 {[%emt 0:00:00]} 2. Nf3 {[%emt 0:00:00]} a6 {[%emt 0:00:00]} 3. g3 {[%emt 0:00:00]} Nc6 {[%emt 0:00:01]} 4. Bg2 {[%emt 0:00:00]} g6 {[%emt 0:00:01]} 5. O-O {[%emt 0:00:03]} Bg7 {[%emt 0:00:02]} 6. Re1 {[%emt 0:00:28]} d6 {[%emt 0:00:05]} 7. c3 {[%emt 0:00:07]} Nf6 {[%emt 0:00:26]} 8. d4 {[%emt 0:00:15]} O-O {[%emt 0:00:04]} 9. h3 {[%emt 0:02:00]} Nd7 {[%emt 0:01:28]} 10. a4 {[%emt 0:00:43]} Rb8 {[%emt 0:00:13]} 11. Na3 {[%emt 0:02:06]} b5 {[%emt 0:00:10]} 12. d5 {[%emt 0:02:41]} Na5 {[%emt 0:00:40]} 13. Nc2 {[%emt 0:03:50]} Nb3 {[%emt 0:00:23]} 14. Ra3 {[%emt 0:00:31]} Nxc1 {[%emt 0:00:17]} 15. Qxc1 {[%emt 0:00:02]} b4 {[%emt 0:00:47]} 16. cxb4 {[%emt 0:00:37]} cxb4 {[%emt 0:00:02]} 17. Rb3 {[%emt 0:00:40]} Nc5 {[%emt 0:01:16]} 18. Rxb4 {[%emt 0:00:50]} Nd3 {[%emt 0:00:02]} 19. Qd2 {[%emt 0:00:34]} Nxb4 {[%emt 0:00:06]} 20. Nxb4 {[%emt 0:00:02]} Bd7 {[%emt 0:00:53]} 21. Nxa6 {[%emt 0:01:27]} Rxb2 {[%emt 0:00:05]} 22. Qe3 {[%emt 0:01:31]} Qa5 {[%emt 0:00:05]} 23. Qa7 {[%emt 0:00:10]} Bxa4 {[%emt 0:00:25]} 24. Bf1 {[%emt 0:00:08]} Rb3 {[%emt 0:00:35]} 25. Re3 {[%emt 0:00:10]} Rxe3 {[%emt 0:00:44]} 26. Qxe3 {[%emt 0:00:03]} Ra8 {[%emt 0:01:05]} 27. Qd3 {[%emt 0:00:20]} Bd7 {[%emt 0:00:53]} 28. Qc4 {[%emt 0:00:10]} Rc8 {[%emt 0:00:29]} 29. Qb3 {[%emt 0:00:08]} Qc3 {[%emt 0:01:25]} 30. Qb7 {[%emt 0:00:08]} Qxf3 {[%emt 0:00:45]} 31. Qxd7 {[%emt 0:00:02]} Rc2 {[%emt 0:00:06]} 32. Qd8+ {[%emt 0:00:13]} Bf8 {[%emt 0:00:01]} 33. Qb6 {[%emt 0:00:01]} Qxe4 {[%emt 0:00:27]} 34. Qb3 {[%emt 0:00:27]} h5 {[%emt 0:00:39]} 35. Nb4 {[%emt 0:00:05]} Rc1 {[%emt 0:00:22]} 36. Nd3 {[%emt 0:00:11]} Ra1 {[%emt 0:00:10]} 37. Qc3 {[%emt 0:00:15]} Bg7 {[%emt 0:00:06]} 38. Qc8+ {[%emt 0:00:08]} Kh7 {[%emt 0:00:04]} 39. Nf4 {[%emt 0:00:07]} Qe1 {[%emt 0:00:56]} 40. Qc4 {[%emt 0:00:06]} Be5 {[%emt 0:00:50]} 41. Ng2 {[%emt 0:00:07]} Qb1 {[%emt 0:00:14]} 42. Ne3 {[%emt 0:00:10]} Qb6 {[%emt 0:00:17]} 43. Kg2 {[%emt 0:00:07]} Qd4 {[%emt 0:00:19]} 44. Qc7 {[%emt 0:00:23]} Bf6 {[%emt 0:00:06]} 45. Be2 {[%emt 0:00:05]} Ra2 {[%emt 0:00:09]} 46. Kf3 {[%emt 0:00:17]} Bg5 {[%emt 0:00:16]} 47. Bc4 {[%emt 0:00:10]} Qf6+ {[%emt 0:00:08]} 48. Ke4 {[%emt 0:00:11]} Qe5+ {[%emt 0:00:11]} 49. Kf3 {[%emt 0:00:10]} Qf6+ {[%emt 0:00:05]} 50. Ke4 {[%emt 0:00:01]} Rxf2 {[%emt 0:00:11]} 51. Qa7 {[%emt 0:00:19]} Qe5+ {[%emt 0:00:19]} 52. Kd3 {[%emt 0:00:01]} Rf3 {[%emt 0:00:05]} 53. Kc2 {[%emt 0:00:19]} Rxe3 {[%emt 0:00:06]} 54. h4 {[%emt 0:00:08]} Qc3+ {[%emt 0:00:03]} 55. Kb1 {[%emt 0:00:03]} Re1+ {[%emt 0:00:03]} 56. Ka2 {[%emt 0:00:01]} Ra1# 0-1

[Event "Kupreichik Memorial Rapid 2019"]
[Site "Minsk"]
[Date "2019.08.17"]
[Round "9.18"]
[White "Kameko, Aleksandr"]
[Black "Stanishevskij, Aleksandr"]
[Result "1-0"]
[ECO "B30"]
[WhiteElo "2045"]
[BlackElo "1830"]
[Annotator "NA"]
[PlyCount "37"]
[EventDate "2019.08.15"]
[EventType "swiss"]
[EventCountry "BLR"]
[SourceTitle "playchess.com"]
[Source "ChessBase"]
[SourceQuality "1"]
[TimeControl "900+10"]

1. e4 {[%emt 0:00:00]} c5 {[%emt 0:00:50]} 2. Nf3 {[%emt 0:00:00]} Nc6 {[%emt 0:00:06]} 3. c4 {[%emt 0:00:00]} e6 {[%emt 0:00:03]} 4. Be2 {[%emt 0:00:05]} Nge7 {[%emt 0:00:16]} 5. O-O {[%emt 0:00:06]} d5 {[%emt 0:00:11]} 6. exd5 {[%emt 0:00:06]} exd5 {[%emt 0:00:05]} 7. cxd5 {[%emt 0:00:02]} Nxd5 {[%emt 0:00:17]} 8. d4 {[%emt 0:00:02]} Be7 {[%emt 0:03:45]} 9. dxc5 {[%emt 0:00:03]} O-O {[%emt 0:00:26]} 10. Nbd2 {[%emt 0:01:07]} Bxc5 {[%emt 0:00:46]} 11. Ne4 {[%emt 0:00:22]} Be7 {[%emt 0:00:50]} 12. Bd2 {[%emt 0:01:01]} Bf5 {[%emt 0:00:39]} 13. Ng3 {[%emt 0:00:14]} Bg6 {[%emt 0:00:18]} 14. Qb3 {[%emt 0:03:08]} b6 {[%emt 0:01:54]} 15. Rfd1 {[%emt 0:00:35]} Nf6 {[%emt 0:04:28]} 16. Bc3 {[%emt 0:02:06]} Qc7 {[%emt 0:00:49]} 17. Rac1 {[%emt 0:00:37]} Qb7 {[%emt 0:00:21]} 18. Qa4 {[%emt 0:02:33]} Nd8 {[%emt 0:00:32]} 19. Ba6 {[%emt 0:00:23]} 1-0

[Event "Kupreichik Memorial Rapid 2019"]
[Site "Minsk"]
[Date "2019.08.17"]
[Round "9.19"]
[White "Shakhadanau, Henadzi"]
[Black "Siniauski, Artsiom"]
[Result "0-1"]
[ECO "C00"]
[WhiteElo "1868"]
[BlackElo "2142"]
[Annotator "NA"]
[PlyCount "78"]
[EventDate "2019.08.15"]
[EventType "swiss"]
[EventCountry "BLR"]
[SourceTitle "playchess.com"]
[Source "ChessBase"]
[SourceQuality "1"]
[TimeControl "900+10"]

1. e4 {[%emt 0:00:00]} e6 {[%emt 0:00:00]} 2. Qe2 {[%emt 0:00:00]} d5 {[%emt 0:00:05]} 3. exd5 {[%emt 0:00:00]} Qxd5 {[%emt 0:00:02]} 4. Nc3 {[%emt 0:00:00]} Qd8 {[%emt 0:00:08]} 5. g3 {[%emt 0:00:03]} Bd7 {[%emt 0:00:10]} 6. Bg2 {[%emt 0:00:02]} Bc6 {[%emt 0:00:02]} 7. Nf3 {[%emt 0:00:33]} Nf6 {[%emt 0:00:03]} 8. O-O {[%emt 0:00:01]} Be7 {[%emt 0:00:05]} 9. d4 {[%emt 0:00:22]} O-O {[%emt 0:00:11]} 10. Rd1 {[%emt 0:00:01]} a6 {[%emt 0:00:11]} 11. Bg5 {[%emt 0:03:48]} h6 {[%emt 0:00:44]} 12. Bxf6 {[%emt 0:00:03]} Bxf6 {[%emt 0:00:03]} 13. Ne5 {[%emt 0:00:09]} Bxg2 {[%emt 0:00:16]} 14. Kxg2 {[%emt 0:00:02]} Nd7 {[%emt 0:00:37]} 15. Ne4 {[%emt 0:00:49]} Be7 {[%emt 0:00:51]} 16. c4 {[%emt 0:00:48]} c6 {[%emt 0:00:40]} 17. a3 {[%emt 0:01:49]} Qc7 {[%emt 0:00:48]} 18. f4 Rfd8 {[%emt 0:01:21]} 19. c5 {[%emt 0:02:57]} Nf6 {[%emt 0:00:44]} 20. Nxf6+ {[%emt 0:01:28]} Bxf6 {[%emt 0:00:12]} 21. Rd2 {[%emt 0:00:58]} Rd5 {[%emt 0:00:15]} 22. Rad1 {[%emt 0:00:30]} Rad8 {[%emt 0:00:19]} 23. b4 {[%emt 0:00:05]} a5 {[%emt 0:01:07]} 24. Qe3 {[%emt 0:00:40]} b5 {[%emt 0:01:21]} 25. cxb6 {[%emt 0:00:14]} Qxb6 {[%emt 0:00:06]} 26. bxa5 {[%emt 0:00:12]} Qa6 {[%emt 0:00:20]} 27. Ng4 {[%emt 0:00:57]} Qxa5 {[%emt 0:00:42]} 28. Nxf6+ {[%emt 0:00:03]} gxf6 {[%emt 0:00:02]} 29. f5 {[%emt 0:01:34]} Rxf5 {[%emt 0:00:31]} 30. Qxh6 {[%emt 0:00:03]} Qxa3 {[%emt 0:00:43]} 31. Rd3 {[%emt 0:00:37]} Qa2+ {[%emt 0:00:10]} 32. Qd2 {[%emt 0:00:03]} Qxd2+ {[%emt 0:00:15]} 33. R1xd2 {[%emt 0:00:03]} Rfd5 {[%emt 0:00:08]} 34. Rc3 {[%emt 0:00:14]} c5 {[%emt 0:00:03]} 35. Rf2 {[%emt 0:00:09]} cxd4 {[%emt 0:00:03]} 36. Rc7 {[%emt 0:00:12]} f5 {[%emt 0:00:08]} 37. g4 {[%emt 0:00:09]} d3 {[%emt 0:00:11]} 38. gxf5 {[%emt 0:00:12]} d2 {[%emt 0:00:05]} 39. fxe6 {[%emt 0:00:13]} d1=Q {[%emt 0:00:11]} 0-1

[Event "Kupreichik Memorial Rapid 2019"]
[Site "Minsk"]
[Date "2019.08.17"]
[Round "9.20"]
[White "Mochalov, Evgeny V"]
[Black "Talma, Sergei"]
[Result "1-0"]
[ECO "A40"]
[WhiteElo "2374"]
[BlackElo "1882"]
[Annotator "NA"]
[PlyCount "71"]
[EventDate "2019.08.15"]
[EventType "swiss"]
[EventCountry "BLR"]
[SourceTitle "playchess.com"]
[Source "ChessBase"]
[SourceQuality "1"]
[TimeControl "900+10"]

1. d4 {[%emt 0:00:00]} Nf6 {[%emt 0:00:00]} 2. c4 {[%emt 0:00:00]} e6 {[%emt 0:00:00]} 3. g3 {[%emt 0:00:01]} d5 {[%emt 0:00:02]} 4. Nf3 {[%emt 0:00:03]} c5 {[%emt 0:00:01]} 5. cxd5 {[%emt 0:00:13]} Nxd5 {[%emt 0:00:16]} 6. Bg2 {[%emt 0:00:02]} Be7 {[%emt 0:00:13]} 7. O-O {[%emt 0:00:03]} O-O {[%emt 0:00:09]} 8. e4 {[%emt 0:00:13]} Nf6 {[%emt 0:00:32]} 9. e5 {[%emt 0:00:10]} Nd5 {[%emt 0:00:11]} 10. dxc5 {[%emt 0:00:31]} Bxc5 {[%emt 0:00:12]} 11. Qc2 {[%emt 0:00:48]} Be7 {[%emt 0:00:08]} 12. Rd1 {[%emt 0:01:50]} Qc7 {[%emt 0:01:28]} 13. Qxc7 {[%emt 0:00:52]} Nxc7 {[%emt 0:00:02]} 14. Bg5 {[%emt 0:01:40]} Bxg5 {[%emt 0:02:07]} 15. Nxg5 {[%emt 0:00:01]} Nc6 {[%emt 0:00:05]} 16. f4 {[%emt 0:03:49]} f6 {[%emt 0:00:44]} 17. Nf3 {[%emt 0:00:25]} Nd5 {[%emt 0:01:17]} 18. exf6 {[%emt 0:00:57]} gxf6 {[%emt 0:00:45]} 19. Kf2 {[%emt 0:00:12]} Bd7 {[%emt 0:02:14]} 20. Nbd2 {[%emt 0:00:35]} Rad8 {[%emt 0:00:49]} 21. Nc4 {[%emt 0:01:47]} Bc8 {[%emt 0:00:55]} 22. a3 {[%emt 0:00:07]} Nb6 {[%emt 0:02:49]} 23. Nd6 {[%emt 0:01:32]} Rd7 {[%emt 0:01:03]} 24. Nxc8 {[%emt 0:00:26]} Rxc8 {[%emt 0:00:03]} 25. Rxd7 {[%emt 0:00:30]} Nxd7 {[%emt 0:00:01]} 26. Rc1 {[%emt 0:00:46]} Rd8 {[%emt 0:00:33]} 27. Rd1 {[%emt 0:00:34]} Nc5 {[%emt 0:00:13]} 28. Rxd8+ {[%emt 0:00:04]} Nxd8 {[%emt 0:00:02]} 29. Ke3 {[%emt 0:00:16]} Nc6 {[%emt 0:00:28]} 30. Nd4 {[%emt 0:00:25]} Nxd4 {[%emt 0:00:24]} 31. Kxd4 {[%emt 0:00:01]} b6 {[%emt 0:00:01]} 32. Kc4 {[%emt 0:01:04]} Kf7 {[%emt 0:00:28]} 33. Kb5 {[%emt 0:00:09]} e5 {[%emt 0:00:50]} 34. fxe5 {[%emt 0:00:06]} fxe5 {[%emt 0:00:01]} 35. b4 {[%emt 0:00:02]} Nb3 {[%emt 0:00:46]} 36. Bd5+ {[%emt 0:00:02]} 1-0

[Event "Kupreichik Memorial Rapid 2019"]
[Site "Minsk"]
[Date "2019.08.17"]
[Round "9.21"]
[White "Leinov, Roman"]
[Black "Sadovnikov, Konstantin"]
[Result "0-1"]
[ECO "A56"]
[WhiteElo "2189"]
[BlackElo "1798"]
[Annotator "NA"]
[PlyCount "69"]
[EventDate "2019.08.15"]
[EventType "swiss"]
[EventCountry "BLR"]
[SourceTitle "playchess.com"]
[Source "ChessBase"]
[SourceQuality "1"]
[TimeControl "900+10"]

1. d4 {[%emt 0:00:00]} Nf6 {[%emt 0:00:00]} 2. c4 {[%emt 0:00:00]} c5 {[%emt 0:00:00]} 3. Nf3 {[%emt 0:00:04]} cxd4 {[%emt 0:00:00]} 4. Nxd4 {[%emt 0:00:02]} e5 {[%emt 0:00:00]} 5. Nf3 {[%emt 0:01:16]} Nc6 {[%emt 0:00:00]} 6. Nc3 {[%emt 0:00:05]} Bb4 {[%emt 0:00:00]} 7. Bd2 {[%emt 0:00:21]} O-O {[%emt 0:00:46]} 8. a3 {[%emt 0:00:21]} Bxc3 {[%emt 0:00:30]} 9. Bxc3 {[%emt 0:00:03]} Ne4 {[%emt 0:00:01]} 10. Rc1 {[%emt 0:01:07]} Qb6 {[%emt 0:01:16]} 11. e3 {[%emt 0:00:37]} Nxc3 {[%emt 0:00:19]} 12. bxc3 {[%emt 0:00:07]} Qb2 {[%emt 0:01:04]} 13. Qc2 {[%emt 0:00:20]} Qxa3 {[%emt 0:00:17]} 14. Bd3 {[%emt 0:03:36]} f5 {[%emt 0:00:26]} 15. e4 {[%emt 0:00:44]} f4 {[%emt 0:00:07]} 16. O-O {[%emt 0:00:21]} Qe7 {[%emt 0:00:27]} 17. c5 {[%emt 0:00:53]} d6 {[%emt 0:02:24]} 18. Bc4+ {[%emt 0:00:09]} Be6 {[%emt 0:00:12]} 19. cxd6 {[%emt 0:00:18]} Qxd6 {[%emt 0:00:08]} 20. Rfd1 {[%emt 0:00:21]} Qe7 {[%emt 0:00:07]} 21. Bd5 {[%emt 0:00:26]} Kh8 {[%emt 0:01:28]} 22. Bxc6 {[%emt 0:01:22]} bxc6 {[%emt 0:00:01]} 23. Nxe5 {[%emt 0:00:07]} Qc5 {[%emt 0:01:14]} 24. Nd3 {[%emt 0:01:38]} Qg5 {[%emt 0:00:01]} 25. f3 {[%emt 0:00:13]} Rab8 {[%emt 0:00:47]} 26. Rb1 {[%emt 0:00:40]} Rb5 {[%emt 0:00:13]} 27. c4 {[%emt 0:01:15]} Rxb1 {[%emt 0:03:19]} 28. Rxb1 {[%emt 0:00:02]} Rd8 {[%emt 0:00:01]} 29. c5 {[%emt 0:00:55]} Qf6 {[%emt 0:01:40]} 30. h3 {[%emt 0:00:28]} Qd4+ {[%emt 0:00:08]} 31. Nf2 {[%emt 0:00:01]} Qe3 {[%emt 0:00:27]} 32. Kh2 {[%emt 0:00:52]} h6 {[%emt 0:00:16]} 33. e5 {[%emt 0:01:09]} Qxe5 {[%emt 0:00:18]} 34. Re1 {[%emt 0:00:04]} Qf6 {[%emt 0:00:23]} 35. Qa4 0-1